fUSD/lending_fUSD_20240201
["ID","MTS","AMOUNT","RATE_DAILY","PERIOD"]
[313130570,1706789443541,-500.0,0.00028499,2]
[313130571,1706789443550,-500.0,0.00028499,2]
[313130572,1706789443560,-509.48175596,0.00028499,2]
[313130573,1706789443569,-509.48175596,0.00028499,2]
[313130574,1706789443578,-500.0,0.00028499,2]
[313130575,1706789443588,-509.48175596,0.00028499,2]
[313130576,1706789443597,-266.28093763,0.00028499,2]
[313130577,1706789443606,-509.48175596,0.00028499,2]
[313130578,1706789443616,-500.0,0.00028499,2]
[313130579,1706789443625,-509.48175596,0.00028499,2]
[313130580,1706789443637,-509.48175596,0.00028499,2]
[313130581,1706789443647,-509.48175596,0.00028499,2]
[313130582,1706789443656,-509.48175596,0.00028499,2]
[313130583,1706789443665,-509.48175596,0.00028499,2]
[313130584,1706789443676,-500.0,0.00028499,2]
[313130585,1706789443686,-509.48175596,0.00028499,2]
[313130586,1706789443694,-509.48175596,0.00028499,2]
[313130587,1706789443703,-500.0,0.00028499,2]
[313130588,1706789443714,-509.48175596,0.00028499,2]
[313130589,1706789443723,-500.0,0.00028499,2]
[313130590,1706789443732,-509.48175596,0.00028499,2]
[313130591,1706789443742,-509.48175596,0.00028499,2]
[313130592,1706789443751,-509.48175596,0.00028499,2]
[313130593,1706789443760,-509.48175596,0.00028499,2]
[313130594,1706789443769,-509.48175596,0.00028499,2]
[313130595,1706789443780,-509.48175596,0.00028499,2]
[313130596,1706789443790,-509.48175596,0.00028499,2]
[313130597,1706789443799,-509.48175596,0.00028499,2]
[313130598,1706789443808,-509.48175596,0.00028499,2]
[313130599,1706789443818,-500.0,0.00028499,2]
[313130600,1706789443827,-619.73318501,0.00028499,2]
[313130601,1706789443837,-500.0,0.00028499,2]
[313130602,1706789443846,-500.0,0.00028499,2]
[313130603,1706789443855,-500.0,0.00028499,2]
[313130604,1706789443864,-500.0,0.00028499,2]
[313130605,1706789443873,-500.0,0.00028499,2]
[313130606,1706789443882,-1803.64489523,0.00028499,2]
[313130607,1706789443891,-1803.64489523,0.00028499,2]
[313130608,1706789443900,-1803.64489523,0.00028499,2]
[313130609,1706789443909,-1803.64489523,0.00028499,2]
[313130610,1706789443919,-1803.64489523,0.00028499,2]
[313130611,1706789443928,-1803.64489523,0.00028499,2]
[313130612,1706789443937,-1803.64489523,0.00028499,2]
[313130613,1706789443946,-1803.64489523,0.00028499,2]
[313130614,1706789443955,-1803.64489523,0.00028499,2]
[313130615,1706789443964,-1803.64489523,0.00028499,2]
[313130616,1706789443974,-1803.64489523,0.00028499,2]
[313130617,1706789443983,-1803.64489523,0.00028499,2]
[313130618,1706789443993,-1803.64489523,0.00028499,2]
[313130620,1706789444003,-1803.64489523,0.00028499,2]
[313130622,1706789444011,-1803.64489523,0.00028499,2]
[313130623,1706789444021,-1803.64489523,0.00028499,2]
[313130624,1706789444031,-499.99999999,0.00028499,2]
[313130626,1706789444040,-517.4,0.00028763,2]
[313130627,1706789444050,-2947.57924514,0.00028858,2]
[313130628,1706789444059,-613.60837157,0.00028858,2]
[313130629,1706789444068,-74313.46232748,0.0002888,2]
[313130630,1706789444077,-18774.599973,0.000289,2]
[313130631,1706789444087,-533.40243106,0.000289,2]
[313130632,1706789444096,-233.367,0.00028916,2]
[313130633,1706789444105,-1233.0,0.00028916,2]
[313130634,1706789444114,-450.661,0.00028916,2]
[313130635,1706789444123,-236.0,0.00028916,2]
[313130636,1706789444132,-1000.0,0.00028964,2]
[313130637,1706789444141,-1941.0,0.00028964,2]
[313130638,1706789444150,-596.0,0.00028964,2]
[313130639,1706789444158,-1138.0,0.00028964,2]
[313130640,1706789444167,-320.0,0.00028964,2]
[313130641,1706789444177,-982.099,0.00028964,2]
[313130642,1706789444186,-151.021,0.00028964,2]
[313130643,1706789444195,-8169.866,0.00028972,2]
[313130644,1706789444204,-2294.394,0.00028972,2]
[313130645,1706789444213,-7436.339,0.00028972,2]
[313130646,1706789444222,-2912.0,0.00028972,2]
[313130647,1706789444231,-5664.969,0.00028972,2]
[313130648,1706789444240,-4205.767,0.00028972,2]
[313130649,1706789444250,-19842.306,0.00028972,2]
[313130650,1706789444259,-1032.0,0.00028972,2]
[313130651,1706789444268,-1000.2855703,0.00028981,2]
[313130652,1706789444278,-48648.6176907,0.00029001,2]
[313130653,1706789444286,-5164.2406376,0.00029001,2]
[313130654,1706789444296,-2625.795617,0.00029021,2]
[313130655,1706789444305,-216.46,0.00029025,2]
[313130656,1706789444314,-500.0,0.00029041,2]
[313130657,1706789444324,-500.9,0.00029041,2]
[313130658,1706789444333,-500.0,0.00029041,2]
[313130659,1706789444342,-500.0,0.00029041,2]
[313130660,1706789444351,-500.0,0.00029041,2]
[313130661,1706789444360,-500.0,0.00029041,2]
[313130662,1706789444369,-500.0,0.00029041,2]
[313130663,1706789444379,-500.0,0.00029041,2]
[313130664,1706789444388,-500.0,0.00029041,2]
[313130665,1706789444398,-500.0,0.00029041,7]
[313130666,1706789444407,-500.0,0.00029041,2]
[313130667,1706789444417,-500.0,0.00029041,2]
[313130668,1706789444426,-500.0,0.00029041,2]
[313130669,1706789444435,-500.0,0.00029041,2]
[313130670,1706789444445,-500.0,0.00029041,2]
[313130671,1706789444454,-500.0,0.00029041,2]
[313130672,1706789444463,-500.0,0.00029041,2]
[313130673,1706789444472,-500.0,0.00029041,2]
[313130674,1706789444482,-630.44,0.00029041,2]
[313130675,1706789444492,-500.0,0.00029041,2]
[313130676,1706789444501,-500.0,0.00029041,2]
[313130677,1706789444683,-500.0,0.00029041,2]
[313130678,1706789444692,-7491.3,0.00029041,2]
[313130679,1706789444701,-500.0,0.00029041,2]
[313130680,1706789444711,-500.0,0.00029041,2]
[313130681,1706789444721,-5037.04,0.00029041,2]
[313130682,1706789444730,-532.35,0.00029041,2]
[313130683,1706789444739,-500.0,0.00029041,2]
[313130684,1706789444749,-855.46,0.00029041,2]
[313130685,1706789444758,-1993.07,0.00029041,2]
[313130686,1706789444767,-500.0,0.00029041,2]
[313130687,1706789444777,-500.0,0.00029041,2]
[313130688,1706789444786,-664.31,0.00029041,2]
[313130689,1706789444795,-510.57239228,0.00029041,2]
[313130690,1706789444804,-500.0,0.00029041,2]
[313130691,1706789444813,-778.89,0.00029041,2]
[313130692,1706789444822,-1069.77,0.00029041,2]
[313130693,1706789444832,-1589.64,0.00029041,2]
[313130694,1706789444841,-500.0,0.00029041,2]
[313130695,1706789444850,-500.0,0.00029041,2]
[313130696,1706789444859,-586.13,0.00029041,2]
[313130697,1706789444869,-500.0,0.00029041,2]
[313130698,1706789444879,-500.0,0.00029041,2]
[313130699,1706789444889,-500.0,0.00029041,2]
[313130700,1706789444898,-552.56,0.00029041,2]
[313130701,1706789444908,-500.0,0.00029041,2]
[313130702,1706789444916,-731.97,0.00029041,2]
[313130703,1706789444925,-500.0,0.00029041,2]
[313130704,1706789444934,-500.0,0.00029041,2]
[313130705,1706789444944,-500.0,0.00029041,2]
[313130706,1706789444953,-500.0,0.00029041,2]
[313130707,1706789444962,-500.0,0.00029041,2]
[313130708,1706789444971,-500.0,0.00029041,2]
[313130709,1706789444981,-500.0,0.00029041,2]
[313130710,1706789444990,-775.07,0.00029041,2]
[313130711,1706789445001,-500.0,0.00029041,2]
[313130712,1706789445010,-500.0,0.00029041,2]
[313130713,1706789445019,-640.32291566,0.00029041,2]
[313130714,1706789445028,-500.0,0.00029041,2]
[313130715,1706789445038,-500.0,0.00029041,2]
[313130716,1706789445047,-500.0,0.00029041,2]
[313130717,1706789445056,-500.0,0.00029041,2]
[313130718,1706789445066,-1135.03,0.00029041,2]
[313130719,1706789445075,-500.0,0.00029041,2]
[313130720,1706789445084,-500.0,0.00029041,2]
[313130721,1706789445093,-842.52,0.00029041,2]
[313130722,1706789445102,-500.0,0.00029041,5]
[313130723,1706789445112,-500.0,0.00029041,2]
[313130724,1706789445122,-500.0,0.00029041,2]
[313130725,1706789445131,-500.0,0.00029041,2]
[313130726,1706789445141,-500.0,0.00029041,2]
[313130727,1706789445151,-500.0,0.00029041,2]
[313130728,1706789445161,-239.70753015,0.00029041,2]
[313130729,1706789445171,-500.0,0.00029041,2]
[313130730,1706789445182,-522.6,0.00029041,2]
[313130731,1706789445192,-500.0,0.00029041,2]
[313130732,1706789445202,-500.0,0.00029041,5]
[313130733,1706789445212,-500.0,0.00029041,2]
[313130734,1706789445223,-500.0,0.00029041,2]
[313130735,1706789445233,-500.0,0.00029041,2]
[313130737,1706789445246,-500.0,0.00029041,2]
[313130739,1706789445256,-500.0,0.00029041,2]
[313130741,1706789445266,-500.0,0.00029349,2]
[313130743,1706789445277,-170.06685639,0.000294,16]
[313130745,1706789445286,-155.01,0.00029436,2]
[313130747,1706789445295,-290.40617084,0.000295,2]
[313130749,1706789445305,-500.0,0.00029589,2]
[313130751,1706789445314,-500.9,0.00029589,2]
[313130752,1706789445323,-360.61989258,0.00029589,2]
[313130753,1706789445332,-500.0,0.00029589,2]
[313130754,1706789445342,-500.0,0.00029589,2]
[313130755,1706789445352,-500.0,0.00029589,2]
[313130756,1706789445362,-500.0,0.00029589,2]
[313130757,1706789445371,-500.0,0.00029589,2]
[313130758,1706789445380,-500.0,0.00029589,2]
[313130760,1706789445390,-500.0,0.00029589,7]
[313130762,1706789445400,-500.0,0.00029589,2]
[313130763,1706789445409,-500.0,0.00029589,2]
[313130765,1706789445418,-500.0,0.00029589,2]
[313130768,1706789445427,-500.0,0.00029589,2]
[313130770,1706789445437,-500.0,0.00029589,2]
[313130772,1706789445446,-609.113317,0.00029589,2]
[313130775,1706789445455,-193.18931622,0.00029589,2]
[313130777,1706789445463,-500.0,0.00029589,2]
[313130780,1706789445472,-630.44,0.00029589,2]
[313130782,1706789445481,-500.0,0.00029589,2]
[313130784,1706789445491,-500.0,0.00029589,2]
[313130786,1706789445504,-500.0,0.00029589,2]
[313130787,1706789445513,-7491.3,0.00029589,2]
[313130788,1706789445523,-500.0,0.00029589,2]
[313130789,1706789445532,-500.0,0.00029589,2]
[313130790,1706789445541,-5037.04,0.00029589,2]
[313130791,1706789445551,-532.35,0.00029589,2]
[313130792,1706789445560,-500.0,0.00029589,2]
[313130793,1706789445570,-855.46,0.00029589,2]
[313130794,1706789445579,-1993.07,0.00029589,2]
[313130795,1706789445589,-500.0,0.00029589,2]
[313130796,1706789445598,-500.0,0.00029589,2]
[313130797,1706789445607,-664.31,0.00029589,2]
[313130798,1706789445617,-500.0,0.00029589,2]
[313130799,1706789445626,-778.89,0.00029589,2]
[313130800,1706789445637,-1069.77,0.00029589,2]
[313130801,1706789445646,-1589.64,0.00029589,2]
[313130802,1706789445655,-500.0,0.00029589,2]
[313130803,1706789445665,-500.0,0.00029589,2]
[313130804,1706789445675,-586.13,0.00029589,2]
[313130805,1706789445685,-500.0,0.00029589,2]
[313130806,1706789445694,-500.0,0.00029589,2]
[313130807,1706789445703,-500.0,0.00029589,2]
[313130808,1706789445713,-552.56,0.00029589,2]
[313130809,1706789445723,-500.0,0.00029589,2]
[313130810,1706789445732,-731.97,0.00029589,2]
[313130811,1706789445741,-500.0,0.00029589,2]
[313130812,1706789445753,-500.0,0.00029589,2]
[313130813,1706789445763,-500.0,0.00029589,2]
[313130814,1706789445773,-500.0,0.00029589,2]
[313130815,1706789445782,-500.0,0.00029589,2]
[313130816,1706789445791,-500.0,0.00029589,2]
[313130817,1706789445801,-500.0,0.00029589,2]
[313130818,1706789445810,-775.07,0.00029589,2]
[313130819,1706789445819,-500.0,0.00029589,2]
[313130820,1706789445829,-500.0,0.00029589,2]
[313130821,1706789445839,-500.0,0.00029589,2]
[313130822,1706789445852,-500.0,0.00029589,2]
[313130823,1706789445861,-500.0,0.00029589,2]
[313130824,1706789445870,-500.0,0.00029589,2]
[313130825,1706789445880,-1135.03,0.00029589,2]
[313130826,1706789445889,-500.0,0.00029589,2]
[313130827,1706789445898,-500.0,0.00029589,2]
[313130828,1706789445907,-842.52,0.00029589,2]
[313130829,1706789445918,-500.0,0.00029589,5]
[313130830,1706789445931,-500.0,0.00029589,2]
[313130831,1706789445940,-500.0,0.00029589,2]
[313130832,1706789445949,-500.0,0.00029589,2]
[313130833,1706789445958,-500.0,0.00029589,2]
[313130834,1706789445967,-500.0,0.00029589,2]
[313130835,1706789445977,-279.53974607,0.00029589,2]
[313130836,1706789445986,-522.6,0.00029589,2]
[313130837,1706789445997,-641.57430375,0.00029589,2]
[313130838,1706789446007,-500.0,0.00029589,5]
[313130839,1706789446016,-500.0,0.00029589,2]
[313130840,1706789446026,-500.0,0.00029589,2]
[313130841,1706789446035,-500.0,0.00029589,2]
[313130842,1706789446044,-500.0,0.00029589,2]
[313130843,1706789446054,-366.0,0.00029659,2]
[313130844,1706789446063,-208.0,0.00029671,12]
[313130845,1706789446073,-239.377,0.00029853,2]
[313130846,1706789446082,-211.042,0.00029853,2]
[313130847,1706789446091,-150.0,0.00029863,2]
[313130848,1706789446100,-356.0,0.00029871,2]
[313130849,1706789446109,-393.072,0.00029873,2]
[313130850,1706789446118,-1399.442,0.00029873,2]
[313130851,1706789446127,-2482.868,0.00029873,2]
[313130852,1706789446136,-1405.868,0.00029873,2]
[313130853,1706789446144,-843.0,0.00029873,2]
[313130854,1706789446153,-1866.491,0.00029873,2]
[313130855,1706789446163,-459.563,0.00029873,2]
[313130856,1706789446172,-953.484,0.00029873,2]
[313130857,1706789446182,-530.0,0.00029873,2]
[313130858,1706789446191,-705.0,0.00029873,2]
[313130859,1706789446200,-1250.0,0.00029873,2]
[313130860,1706789446209,-316.63728519,0.000299,2]
[313130861,1706789446218,-154.66893655,0.00029962,2]
[313130862,1706789446227,-482.6,0.0002999,2]
[313130863,1706789446237,-6646.54423136,0.0003,2]
[313130864,1706789446248,-1639.91302171,0.0003,4]
[313130865,1706789446257,-155.267871,0.0003,4]
[313130866,1706789446266,-203.8884732,0.0003,4]
[313130867,1706789446275,-451.91910695,0.0003,2]
[313130868,1706789446284,-155.0,0.0003,2]
[313130869,1706789446294,-902.54548176,0.0003,2]
[313130870,1706789446303,-3430.78962876,0.0003,5]
[313130871,1706789446313,-500.0,0.0003,2]
[313130872,1706789446322,-1000.0,0.0003,2]
[313130873,1706789446331,-565.3,0.00030014,2]
[313130874,1706789446340,-381.80581301,0.00030136,2]
[313130875,1706789446350,-500.9,0.00030136,2]
[313130876,1706789446359,-500.0,0.00030136,2]
[313130877,1706789446368,-500.0,0.00030136,2]
[313130878,1706789446378,-500.0,0.00030136,2]
[313130879,1706789446387,-500.0,0.00030136,2]
[313130880,1706789446396,-500.0,0.00030136,2]
[313130881,1706789446406,-500.0,0.00030136,2]
[313130882,1706789446415,-500.0,0.00030136,7]
[313130883,1706789446425,-500.0,0.00030136,2]
[313130884,1706789446434,-500.0,0.00030136,2]
[313130885,1706789446444,-500.0,0.00030136,2]
[313130886,1706789446453,-500.0,0.00030136,2]
[313130887,1706789446462,-500.0,0.00030136,2]
[313130888,1706789446471,-630.44,0.00030136,2]
[313130889,1706789446481,-500.0,0.00030136,2]
[313130890,1706789446491,-500.0,0.00030136,2]
[313130891,1706789446501,-500.0,0.00030136,2]
[313130892,1706789446511,-7491.3,0.00030136,2]
[313130893,1706789446520,-500.0,0.00030136,2]
[313130894,1706789446529,-500.0,0.00030136,2]
[313130895,1706789446538,-5037.04,0.00030136,2]
[313130896,1706789446548,-500.0,0.00030136,2]
[313130897,1706789446557,-532.35,0.00030136,2]
[313130898,1706789446566,-855.46,0.00030136,2]
[313130899,1706789446575,-1993.07,0.00030136,2]
[313130900,1706789446588,-500.0,0.00030136,2]
[313130901,1706789446601,-500.0,0.00030136,2]
[313130902,1706789446615,-664.31,0.00030136,2]
[313130903,1706789446627,-347.67640042,0.00030136,2]
[313130904,1706789446643,-778.89,0.00030136,2]
[313130905,1706789446653,-1069.77,0.00030136,2]
[313130906,1706789446663,-1589.64,0.00030136,2]
[313130907,1706789446675,-500.0,0.00030136,2]
[313130908,1706789446688,-500.0,0.00030136,2]
[313130909,1706789446699,-586.13,0.00030136,2]
[313130910,1706789446712,-410.42449476,0.00030136,2]
[313130911,1706789446725,-500.0,0.00030136,2]
[313130912,1706789446737,-500.0,0.00030136,2]
[313130913,1706789446750,-552.56,0.00030136,2]
[313130914,1706789446762,-249.12788343,0.00030136,2]
[313130915,1706789446773,-731.97,0.00030136,2]
[313130916,1706789446783,-500.0,0.00030136,2]
[313130917,1706789446795,-500.0,0.00030136,2]
[313130918,1706789446808,-187.61712689,0.00030136,2]
[313130919,1706789446820,-500.0,0.00030136,2]
[313130920,1706789446831,-500.0,0.00030136,2]
[313130921,1706789446842,-500.0,0.00030136,2]
[313130922,1706789446854,-500.0,0.00030136,2]
[313130923,1706789446866,-775.07,0.00030136,2]
[313130924,1706789446879,-500.0,0.00030136,2]
[313130925,1706789446891,-500.0,0.00030136,2]
[313130926,1706789446901,-500.0,0.00030136,2]
[313130927,1706789446912,-500.0,0.00030136,2]
[313130928,1706789446925,-500.0,0.00030136,2]
[313130929,1706789446937,-500.0,0.00030136,2]
[313130930,1706789446949,-1135.03,0.00030136,2]
[313130931,1706789446961,-500.0,0.00030136,2]
[313130932,1706789446971,-500.0,0.00030136,2]
[313130933,1706789446983,-842.52,0.00030136,2]
[313130934,1706789446993,-500.0,0.00030136,5]
[313130935,1706789447008,-500.0,0.00030136,2]
[313130936,1706789447021,-500.0,0.00030136,2]
[313130937,1706789447033,-500.0,0.00030136,2]
[313130938,1706789447045,-500.0,0.00030136,2]
[313130939,1706789447058,-500.0,0.00030136,2]
[313130940,1706789447071,-522.6,0.00030136,2]
[313130941,1706789447083,-600.25,0.00030136,5]
[313130942,1706789447095,-500.0,0.00030136,2]
[313130943,1706789447107,-500.0,0.00030136,2]
[313130944,1706789447117,-500.0,0.00030136,2]
[313130945,1706789447127,-500.0,0.00030136,2]
[313130946,1706789447137,-153.87,0.00030137,2]
[313130947,1706789447147,-301.86,0.00030137,2]
[313130948,1706789447158,-150.0,0.00030137,2]
[313130949,1706789447169,-150.0,0.00030137,2]
[313130950,1706789447181,-150.0,0.00030137,2]
[313130951,1706789447191,-480.0,0.000302,2]
[313130952,1706789447202,-1109.79868394,0.000302,4]
[313130953,1706789447214,-500.0,0.00030683,2]
[313130954,1706789447225,-500.9,0.00030684,2]
[313130955,1706789447235,-500.0,0.00030684,2]
[313130956,1706789447248,-500.0,0.00030684,2]
[313130957,1706789447258,-500.0,0.00030684,2]
[313130958,1706789447268,-500.0,0.00030684,2]
[313130959,1706789447279,-500.0,0.00030684,2]
[313130960,1706789447290,-500.0,0.00030684,2]
[313130961,1706789447300,-500.0,0.00030684,7]
[313130962,1706789447311,-500.0,0.00030684,2]
[313130963,1706789447322,-500.0,0.00030684,2]
[313130964,1706789447332,-500.0,0.00030684,2]
[313130965,1706789447342,-500.0,0.00030684,2]
[313130966,1706789447353,-500.0,0.00030684,2]
[313130967,1706789447364,-630.44,0.00030684,2]
[313130968,1706789447374,-500.0,0.00030684,2]
[313130969,1706789447384,-500.0,0.00030684,2]
[313130970,1706789447395,-500.0,0.00030684,2]
[313130971,1706789447405,-7491.3,0.00030684,2]
[313130972,1706789447416,-500.0,0.00030684,2]
[313130973,1706789447427,-500.0,0.00030684,2]
[313130974,1706789447438,-5037.04,0.00030684,2]
[313130975,1706789447448,-500.0,0.00030684,2]
[313130976,1706789447460,-532.35,0.00030684,2]
[313130977,1706789447472,-855.46,0.00030684,2]
[313130978,1706789447482,-1993.07,0.00030684,2]
[313130979,1706789447493,-500.0,0.00030684,2]
[313130980,1706789447504,-580.86933696,0.00030684,2]
[313130981,1706789447515,-664.31,0.00030684,2]
[313130982,1706789447526,-778.89,0.00030684,2]
[313130983,1706789447537,-1069.77,0.00030684,2]
[313130984,1706789447548,-1589.64,0.00030684,2]
[313130985,1706789447559,-500.0,0.00030684,2]
[313130986,1706789447569,-500.0,0.00030684,2]
[313130987,1706789447580,-586.13,0.00030684,2]
[313130988,1706789447590,-500.0,0.00030684,2]
[313130989,1706789447601,-500.0,0.00030684,2]
[313130990,1706789447611,-552.56,0.00030684,2]
[313130991,1706789447625,-731.97,0.00030684,2]
[313130992,1706789447635,-500.0,0.00030684,2]
[313130993,1706789447646,-500.0,0.00030684,2]
[313130994,1706789447657,-500.0,0.00030684,2]
[313130995,1706789447667,-500.0,0.00030684,2]
[313130996,1706789447679,-551.94734717,0.00030684,2]
[313130997,1706789447689,-500.0,0.00030684,2]
[313130998,1706789447702,-775.07,0.00030684,2]
[313130999,1706789447715,-500.0,0.00030684,2]
[313131000,1706789447726,-500.0,0.00030684,2]
[313131001,1706789447737,-500.0,0.00030684,2]
[313131002,1706789447747,-500.0,0.00030684,2]
[313131003,1706789447758,-500.0,0.00030684,2]
[313131004,1706789447768,-500.0,0.00030684,2]
[313131005,1706789447779,-1135.03,0.00030684,2]
[313131006,1706789447790,-500.0,0.00030684,2]
[313131007,1706789447801,-500.0,0.00030684,2]
[313131008,1706789447811,-842.52,0.00030684,2]
[313131009,1706789447822,-500.0,0.00030684,5]
[313131010,1706789447832,-500.0,0.00030684,2]
[313131011,1706789447843,-500.0,0.00030684,2]
[313131012,1706789447854,-500.0,0.00030684,2]
[313131013,1706789447864,-500.0,0.00030684,2]
[313131014,1706789447875,-500.0,0.00030684,2]
[313131015,1706789447885,-522.6,0.00030684,2]
[313131016,1706789447896,-500.0,0.00030684,2]
[313131017,1706789447906,-500.0,0.00030684,2]
[313131018,1706789447917,-482.7941932,0.00030684,2]
[313131019,1706789447928,-500.0,0.00030684,2]
[313131020,1706789447938,-85.13732309,0.00030685,2]
[313131022,1706789448491,-3306.75797983,0.00022999,2]
[313131023,1706789448774,-500.0,0.00028493,2]
[313131024,1706789448791,-500.0,0.00029041,2]
[313131025,1706789448800,-400.85092421,0.00029589,2]
[313131026,1706789451463,-99.14907579,0.00029589,2]
[313131027,1706789451473,-500.0,0.00029589,2]
[313131028,1706789451482,-500.0,0.00030136,2]
[313131029,1706789451492,-500.0,0.00030136,2]
[313131030,1706789451501,-500.0,0.00030684,2]
[313131031,1706789451511,-500.0,0.00030684,2]
[313131032,1706789451520,-78.28267691,0.00030685,2]
[313131033,1706789451530,-1890.68970569,0.00030879,2]
[313131034,1706789451874,-283.67279462,0.00022998,2]
[313131035,1706789451884,-694.80541573,0.00022998,2]
[313131036,1706789451895,-3470.70284634,0.00022998,2]
[313131037,1706789451904,-4972.20747607,0.00030879,2]
[313131038,1706789451916,-3238.41797386,0.00030879,2]
[313131039,1706789451928,-405.5664405,0.00030879,2]
[313131040,1706789451939,-503.10789603,0.00030879,2]
[313131041,1706789451951,-1971.8425177,0.00030879,2]
[313131042,1706789452018,-150.01,0.00027396,2]
[313131043,1706789452027,-434.98795,0.00027396,2]
[313131044,1706789452047,-2871.77002983,0.00027396,2]
[313131045,1706789452057,-8453.22997009,0.00030879,2]
[313131046,1706789452070,-1902.19640961,0.00030879,2]
[313131047,1706789452082,-21669.32186724,0.00030879,2]
[313131048,1706789452092,-4576.9200582,0.00030879,2]
[313131049,1706789452101,-887.7937737,0.00030879,2]
[313131050,1706789452110,-500.0,0.00030899,2]
[313131051,1706789452119,-30120.8270187,0.000309,2]
[313131052,1706789452275,-231.04821633,0.00022998,2]
[313131053,1706789452284,-833.16011945,0.00030135,4]
[313131054,1706789452293,-1271.1335101,0.000309,2]
[313131055,1706789452305,-42508.23954827,0.000309,2]
[313131056,1706789452316,-59766.28440045,0.000309,2]
[313131057,1706789452327,-5621.81482257,0.000309,2]
[313131058,1706789452338,-496.07901285,0.000309,2]
[313131059,1706789452350,-3707.47098715,0.000309,2]
[313131060,1706789452362,-3812.89803203,0.000309,2]
[313131061,1706789452445,198.36,0.0002181,2]
[313131076,1706789470866,158.28,0.00021784,2]
[313131086,1706789523752,-150.0,0.00022599,2]
[313131087,1706789523773,-300.0,0.00022599,2]
[313131088,1706789523795,-14550.0,0.000226,2]
[313131106,1706789661187,-4165.50826207,0.00022598,2]
[313131107,1706789661209,-724.64,0.00022599,2]
[313131108,1706789661231,-719.29,0.00022599,2]
[313131109,1706789661252,-522.44333619,0.00022599,2]
[313131110,1706789661273,-279.99555119,0.00022599,2]
[313131111,1706789661294,-517.98027568,0.00022599,2]
[313131112,1706789661316,-3070.14257487,0.000226,2]
[313131113,1706789681253,4165.50826207,0.00022373,2]
[313131114,1706789699258,4165.50826207,0.00022372,2]
[313131121,1706789717262,1642.94552337,0.00022372,2]
[313131122,1706789717285,1695.39413159,0.00022372,2]
[313131123,1706789732688,-710.73,0.00022598,2]
[313131124,1706789732729,-726.99,0.00022598,2]
[313131125,1706789732750,-150.0,0.00022599,2]
[313131126,1706789732772,-150.0,0.00022599,2]
[313131127,1706789732797,-8262.28,0.000226,2]
[313131129,1706789938544,157.1865706,0.00022498,2]
[313131130,1706790080774,150.0,0.0003125,120]
[313131133,1706790381424,13241.093,0.000225,2]
[313131138,1706790631617,-184.55,0.00022553,2]
[313131139,1706790631627,-3804.73263599,0.0002259,2]
[313131140,1706790631638,-150.0,0.00022597,2]
[313131141,1706790631648,-715.92,0.00022598,2]
[313131142,1706790631659,-1259.57085833,0.00022598,2]
[313131143,1706790631668,-713.33,0.00022598,2]
[313131144,1706790631677,-724.02,0.00022598,2]
[313131145,1706790631687,-729.52,0.00022598,2]
[313131146,1706790631697,-715.09,0.00022598,2]
[313131147,1706790631706,-715.54,0.00022598,2]
[313131148,1706790631716,-722.22,0.00022598,2]
[313131149,1706790631725,-729.78,0.00022598,2]